[Event "*** SCC Grand Prix: Titled Tuesday Blitz"]
[Site "Chess.com"]
[Date "2020.10.06"]
[Round "9"]
[White "Tenamu"]
[Black "HanSchut"]
[Result "1-0"]
[WhiteElo "2373"]
[BlackElo "2247"]
[TimeControl "180+1"]
[EndTime "11:46:37 PDT"]
[Termination "Tenamu won on time"]

1. d4 {[%clk 0:02:59.6]} 1... Nf6 {[%clk 0:02:58.4]} 2. Nc3 {[%clk 0:03:00]}
2... d5 {[%clk 0:02:58.3]} 3. Bf4 {[%clk 0:02:59.9]} 3... e6 {[%clk 0:02:57.9]}
4. a3 {[%clk 0:02:59.3]} 4... Bd6 {[%clk 0:02:58.3]} 5. e3 {[%clk 0:02:59.1]}
5... O-O {[%clk 0:02:52.1]} 6. Nf3 {[%clk 0:02:58.1]} 6... b6 {[%clk 0:02:47.2]}
7. Bd3 {[%clk 0:02:57.2]} 7... Bb7 {[%clk 0:02:46.3]} 8. h4 {[%clk 0:02:57.1]}
8... Ne4 {[%clk 0:02:46.2]} 9. g4 {[%clk 0:02:54.9]} 9... Nd7 {[%clk 0:02:36.5]}
10. g5 {[%clk 0:02:51.8]} 10... f5 {[%clk 0:02:27.7]} 11. h5 {[%clk 0:02:50.4]}
11... Be7 {[%clk 0:02:11.8]} 12. Rg1 {[%clk 0:02:47.7]} 12... c5 {[%clk
0:02:08.4]} 13. Nb5 {[%clk 0:02:44.6]} 13... c4 {[%clk 0:01:58.9]} 14. Be2
{[%clk 0:02:43.2]} 14... Re8 {[%clk 0:01:18.1]} 15. Nc7 {[%clk 0:02:39.2]} 15...
Bd6 {[%clk 0:01:17.3]} 16. Nxa8 {[%clk 0:02:32.4]} 16... Bxa8 {[%clk 0:01:12.6]}
17. Bxd6 {[%clk 0:02:30.9]} 17... Nxd6 {[%clk 0:01:13.2]} 18. Ne5 {[%clk
0:02:31.4]} 18... Nxe5 {[%clk 0:01:09.9]} 19. dxe5 {[%clk 0:02:32.3]} 19... Ne4
{[%clk 0:00:58.6]} 20. f4 {[%clk 0:02:25.6]} 20... Qe7 {[%clk 0:00:46.5]} 21.
Bf3 {[%clk 0:02:20.8]} 21... Qc5 {[%clk 0:00:40.5]} 22. Qd4 {[%clk 0:02:19.3]}
22... Qa5+ {[%clk 0:00:37.8]} 23. Ke2 {[%clk 0:02:15.2]} 23... Nc5 {[%clk
0:00:34.3]} 24. Rgb1 {[%clk 0:02:12.6]} 24... Qb5 {[%clk 0:00:25.8]} 25. Kf2
{[%clk 0:02:09.7]} 25... Bb7 {[%clk 0:00:21.8]} 26. Kg3 {[%clk 0:01:56.5]} 26...
Qd7 {[%clk 0:00:21.3]} 27. a4 {[%clk 0:01:50.9]} 27... Qf7 {[%clk 0:00:19.9]}
28. b4 {[%clk 0:01:43.8]} 28... cxb3 {[%clk 0:00:19.7]} 29. cxb3 {[%clk
0:01:44.7]} 29... Ba6 {[%clk 0:00:18.2]} 30. b4 {[%clk 0:01:43.2]} 30... Nd7
{[%clk 0:00:16.2]} 31. b5 {[%clk 0:01:39.8]} 31... Bc8 {[%clk 0:00:15.8]} 32. a5
{[%clk 0:01:39.1]} 32... Nc5 {[%clk 0:00:15.3]} 33. axb6 {[%clk 0:01:37.4]}
33... axb6 {[%clk 0:00:16.2]} 34. Ra8 {[%clk 0:01:37.5]} 34... Ne4+ {[%clk
0:00:15.6]} 35. Bxe4 {[%clk 0:01:37.2]} 35... fxe4 {[%clk 0:00:16.5]} 36. Rc1
{[%clk 0:01:36.3]} 36... Qxh5 {[%clk 0:00:15.5]} 37. Qd1 {[%clk 0:01:31.5]}
37... Qxd1 {[%clk 0:00:12.6]} 38. Rxd1 {[%clk 0:01:32.4]} 38... Bd7 {[%clk
0:00:11.9]} 39. Rxe8+ {[%clk 0:01:29.9]} 39... Bxe8 {[%clk 0:00:12.8]} 40. Rc1
{[%clk 0:01:29.9]} 40... Bxb5 {[%clk 0:00:12.5]} 41. Rb1 {[%clk 0:01:29.4]}
41... Bc4 {[%clk 0:00:10.6]} 42. Rxb6 {[%clk 0:01:29]} 42... Kf7 {[%clk
0:00:11.5]} 43. g6+ {[%clk 0:01:26.5]} 43... hxg6 {[%clk 0:00:10.3]} 44. Kg4
{[%clk 0:01:26.5]} 44... d4 {[%clk 0:00:08.5]} 45. exd4 {[%clk 0:01:25.7]} 45...
e3 {[%clk 0:00:09]} 46. Kf3 {[%clk 0:01:25.1]} 46... e2 {[%clk 0:00:09.5]} 47.
Kf2 {[%clk 0:01:25.6]} 47... g5 {[%clk 0:00:09.8]} 48. f5 {[%clk 0:01:18]} 48...
exf5 {[%clk 0:00:07.9]} 49. Rc6 {[%clk 0:01:17.4]} 49... Bd5 {[%clk 0:00:07.2]}
50. Rc7+ {[%clk 0:01:16.5]} 50... Kg6 {[%clk 0:00:06.2]} 51. Kxe2 {[%clk
0:01:16.9]} 51... f4 {[%clk 0:00:05.5]} 52. Rd7 {[%clk 0:01:12.7]} 52... Be4
{[%clk 0:00:05.5]} 53. d5 {[%clk 0:01:08]} 53... g4 {[%clk 0:00:06.1]} 54. d6
{[%clk 0:01:04.5]} 54... g3 {[%clk 0:00:06.6]} 55. Ra7 {[%clk 0:01:00]} 55...
f3+ {[%clk 0:00:06.8]} 56. Ke3 {[%clk 0:00:58.1]} 56... f2 {[%clk 0:00:03.7]}
57. Ra1 {[%clk 0:00:57.8]} 57... Kf5 {[%clk 0:00:03.8]} 58. d7 {[%clk
0:00:56.9]} 1-0

[Event "*** SCC Grand Prix: Titled Tuesday Blitz"]
[Site "Chess.com"]
[Date "2020.10.06"]
[Round "9"]
[White "Ladislav1969"]
[Black "AndreyNeves"]
[Result "0-1"]
[WhiteElo "2348"]
[BlackElo "2246"]
[TimeControl "180+1"]
[EndTime "11:46:37 PDT"]
[Termination "AndreyNeves won on time"]

1. e4 {[%clk 0:03:00.9]} 1... e5 {[%clk 0:02:55.7]} 2. Bc4 {[%clk 0:03:00.2]}
2... Nf6 {[%clk 0:02:51.9]} 3. d3 {[%clk 0:03:00.4]} 3... c6 {[%clk 0:02:51.6]}
4. Nf3 {[%clk 0:02:59.9]} 4... d5 {[%clk 0:02:49.7]} 5. Bb3 {[%clk 0:02:59.9]}
5... Bd6 {[%clk 0:02:47.6]} 6. Nc3 {[%clk 0:03:00.1]} 6... d4 {[%clk 0:02:43.6]}
7. Ne2 {[%clk 0:02:59.8]} 7... O-O {[%clk 0:02:39.4]} 8. O-O {[%clk 0:02:53.1]}
8... Be6 {[%clk 0:02:39.1]} 9. c3 {[%clk 0:02:38.5]} 9... Nbd7 {[%clk
0:02:36.6]} 10. cxd4 {[%clk 0:02:33.4]} 10... exd4 {[%clk 0:02:32.5]} 11. Bxe6
{[%clk 0:02:25.1]} 11... fxe6 {[%clk 0:02:31.7]} 12. Nfxd4 {[%clk 0:02:14.2]}
12... Qe7 {[%clk 0:02:31.5]} 13. Bg5 {[%clk 0:01:43.2]} 13... Bxh2+ {[%clk
0:02:28.5]} 14. Kh1 {[%clk 0:01:36.1]} 14... Bc7 {[%clk 0:02:17.1]} 15. f4
{[%clk 0:01:35.7]} 15... Qf7 {[%clk 0:02:16.7]} 16. Ng3 {[%clk 0:01:18.7]} 16...
h6 {[%clk 0:02:10]} 17. Bxf6 {[%clk 0:01:12.3]} 17... Qxf6 {[%clk 0:02:06.1]}
18. Nde2 {[%clk 0:01:02.4]} 18... Qh4+ {[%clk 0:02:03.7]} 19. Kg1 {[%clk
0:01:02.7]} 19... Bxf4 {[%clk 0:01:39.7]} 20. Rxf4 {[%clk 0:00:59]} 20... Rxf4
{[%clk 0:01:38.8]} 21. Nxf4 {[%clk 0:00:58.3]} 21... Qxf4 {[%clk 0:01:37.9]} 22.
Qf3 {[%clk 0:00:49.2]} 22... Qxf3 {[%clk 0:01:32.6]} 23. gxf3 {[%clk 0:00:49.5]}
23... Ne5 {[%clk 0:01:33.2]} 24. f4 {[%clk 0:00:24.7]} 24... Nxd3 {[%clk
0:01:32.6]} 25. Rd1 {[%clk 0:00:24.5]} 25... Nxf4 {[%clk 0:01:30.2]} 26. Rd7
{[%clk 0:00:23.9]} 26... Rf8 {[%clk 0:01:18.1]} 27. Rxb7 {[%clk 0:00:21.5]}
27... Rf7 {[%clk 0:01:17.9]} 28. Rb8+ {[%clk 0:00:19.1]} 28... Kh7 {[%clk
0:01:16.5]} 29. Rc8 {[%clk 0:00:18.1]} 29... h5 {[%clk 0:01:11.3]} 30. Rxc6
{[%clk 0:00:17.5]} 30... h4 {[%clk 0:01:11.9]} 31. Nf1 {[%clk 0:00:13.4]} 31...
Rf6 {[%clk 0:01:02.3]} 32. Ne3 {[%clk 0:00:10.5]} 32... Rg6+ {[%clk 0:00:59.1]}
33. Kh2 {[%clk 0:00:08.5]} 33... Rg3 {[%clk 0:00:55]} 34. Nf1 {[%clk 0:00:05.4]}
34... Rg2+ {[%clk 0:00:51.9]} 35. Kh1 {[%clk 0:00:04.6]} 35... Rxb2 {[%clk
0:00:49.7]} 36. Ne3 {[%clk 0:00:02.8]} 36... Rxa2 {[%clk 0:00:44.1]} 37. Ng4
{[%clk 0:00:03.4]} 37... h3 {[%clk 0:00:37]} 38. Rc7 {[%clk 0:00:03]} 38... Kg6
{[%clk 0:00:23.7]} 39. Ne5+ {[%clk 0:00:02.5]} 39... Kf6 {[%clk 0:00:21.3]} 40.
Ng4+ {[%clk 0:00:02.5]} 40... Kg5 {[%clk 0:00:18.9]} 41. Rxg7+ {[%clk
0:00:01.3]} 41... Kh4 {[%clk 0:00:19]} 0-1

[Event "*** SCC Grand Prix: Titled Tuesday Blitz"]
[Site "Chess.com"]
[Date "2020.10.06"]
[Round "9"]
[White "Gusarov91"]
[Black "PowerThinking2650"]
[Result "1-0"]
[WhiteElo "2580"]
[BlackElo "2397"]
[TimeControl "180+1"]
[EndTime "11:46:40 PDT"]
[Termination "Gusarov91 won by resignation"]

1. d4 {[%clk 0:03:00.8]} 1... Nf6 {[%clk 0:02:57.4]} 2. Nf3 {[%clk 0:03:00.7]}
2... g6 {[%clk 0:02:57.2]} 3. c4 {[%clk 0:03:01.2]} 3... Bg7 {[%clk 0:02:57.7]}
4. Nc3 {[%clk 0:03:01.9]} 4... O-O {[%clk 0:02:57.2]} 5. Bg5 {[%clk 0:03:00.6]}
5... c5 {[%clk 0:02:55.7]} 6. d5 {[%clk 0:03:00.5]} 6... e6 {[%clk 0:02:51.3]}
7. dxe6 {[%clk 0:02:59.1]} 7... fxe6 {[%clk 0:02:43.4]} 8. e4 {[%clk 0:02:57.4]}
8... Qa5 {[%clk 0:02:25.2]} 9. Nd2 {[%clk 0:02:49.9]} 9... Nc6 {[%clk
0:01:50.6]} 10. Bd3 {[%clk 0:02:49.6]} 10... Nh5 {[%clk 0:01:45.4]} 11. Rc1
{[%clk 0:02:41.1]} 11... Nf4 {[%clk 0:01:41.5]} 12. Bxf4 {[%clk 0:02:31.6]}
12... Rxf4 {[%clk 0:01:42.4]} 13. O-O {[%clk 0:02:31.8]} 13... d6 {[%clk
0:01:42]} 14. Nb3 {[%clk 0:02:30.6]} 14... Qd8 {[%clk 0:01:36.6]} 15. g3 {[%clk
0:02:28.2]} 15... Rf8 {[%clk 0:01:31]} 16. f4 {[%clk 0:02:28.4]} 16... Nd4
{[%clk 0:01:21.2]} 17. Kh1 {[%clk 0:02:25.1]} 17... Bd7 {[%clk 0:01:15.3]} 18.
Nxd4 {[%clk 0:02:18.9]} 18... cxd4 {[%clk 0:01:12.7]} 19. Ne2 {[%clk 0:02:18.2]}
19... a5 {[%clk 0:01:02.5]} 20. c5 {[%clk 0:02:06.1]} 20... dxc5 {[%clk
0:01:02.5]} 21. Rxc5 {[%clk 0:02:05.7]} 21... Bc6 {[%clk 0:01:03.2]} 22. Qb3
{[%clk 0:02:00.1]} 22... Kh8 {[%clk 0:00:52.8]} 23. Kg1 {[%clk 0:01:52.2]} 23...
e5 {[%clk 0:00:45.6]} 24. Qc2 {[%clk 0:01:37.1]} 24... exf4 {[%clk 0:00:38.9]}
25. Nxf4 {[%clk 0:01:37.4]} 25... Qd7 {[%clk 0:00:38.9]} 26. Qg2 {[%clk
0:01:14.5]} 26... Rae8 {[%clk 0:00:37.9]} 27. Rxa5 {[%clk 0:01:10.8]} 27... Bh6
{[%clk 0:00:37.2]} 28. h4 {[%clk 0:01:08.2]} 28... Qg4 {[%clk 0:00:30.1]} 29.
Qf3 {[%clk 0:00:55.4]} 29... Rxf4 {[%clk 0:00:26.5]} 30. Qxg4 {[%clk 0:00:55.4]}
30... Rxg4 {[%clk 0:00:26.5]} 31. Kh2 {[%clk 0:00:55]} 31... Bxe4 {[%clk
0:00:22.8]} 32. Bb5 {[%clk 0:00:55.2]} 32... Rf8 {[%clk 0:00:20]} 33. Rxf8+
{[%clk 0:00:53]} 33... Bxf8 {[%clk 0:00:20.9]} 34. Ra8 {[%clk 0:00:52.3]} 34...
Kg7 {[%clk 0:00:19.4]} 35. Be2 {[%clk 0:00:52.5]} 35... Bf5 {[%clk 0:00:19.6]}
36. Bxg4 {[%clk 0:00:47]} 36... Bxg4 {[%clk 0:00:20.5]} 37. Rd8 {[%clk
0:00:46.6]} 37... Bc5 {[%clk 0:00:20.5]} 38. b4 {[%clk 0:00:46.4]} 38... Bb6
{[%clk 0:00:20.2]} 39. Rd6 {[%clk 0:00:46.6]} 39... Ba7 {[%clk 0:00:19.8]} 40.
a4 {[%clk 0:00:46.7]} 40... Be2 {[%clk 0:00:18.7]} 41. Rd7+ {[%clk 0:00:44.8]}
41... Kf6 {[%clk 0:00:17.5]} 42. Rxb7 {[%clk 0:00:45.1]} 42... d3 {[%clk
0:00:12.4]} 43. Rxa7 {[%clk 0:00:45.5]} 43... Ke6 {[%clk 0:00:12.9]} 44. Ra6+
{[%clk 0:00:43.7]} 44... Ke5 {[%clk 0:00:12.9]} 45. Ra8 {[%clk 0:00:43.5]} 45...
d2 {[%clk 0:00:12.5]} 46. Re8+ {[%clk 0:00:41.4]} 46... Kd4 {[%clk 0:00:12.3]}
47. Rd8+ {[%clk 0:00:41.7]} 47... Kc3 {[%clk 0:00:12.7]} 48. b5 {[%clk
0:00:41.9]} 48... d1=Q {[%clk 0:00:11.9]} 49. Rxd1 {[%clk 0:00:41.2]} 49... Bxd1
{[%clk 0:00:12.8]} 50. a5 {[%clk 0:00:41.7]} 50... Kb4 {[%clk 0:00:08.9]} 51. b6
{[%clk 0:00:40]} 51... Bf3 {[%clk 0:00:08]} 52. a6 {[%clk 0:00:40.4]} 52... Ka5
{[%clk 0:00:05.2]} 53. b7 {[%clk 0:00:40.9]} 1-0

[Event "*** SCC Grand Prix: Titled Tuesday Blitz"]
[Site "Chess.com"]
[Date "2020.10.06"]
[Round "9"]
[White "tlomigtlis"]
[Black "elamier"]
[Result "1/2-1/2"]
[WhiteElo "2487"]
[BlackElo "2365"]
[TimeControl "180+1"]
[EndTime "11:46:41 PDT"]
[Termination "Game drawn by repetition"]

1. d4 {[%clk 0:03:00.9]} 1... d5 {[%clk 0:02:59.9]} 2. c4 {[%clk 0:03:00.9]}
2... c6 {[%clk 0:03:00]} 3. Nf3 {[%clk 0:03:00.4]} 3... Nf6 {[%clk 0:03:00.5]}
4. Nc3 {[%clk 0:03:00.2]} 4... dxc4 {[%clk 0:03:00.6]} 5. a4 {[%clk 0:02:59.4]}
5... e5 {[%clk 0:03:00.5]} 6. Nxe5 {[%clk 0:02:56.1]} 6... Bb4 {[%clk
0:03:00.6]} 7. Nxc4 {[%clk 0:02:53.8]} 7... c5 {[%clk 0:02:57.6]} 8. e3 {[%clk
0:02:41.5]} 8... Nc6 {[%clk 0:02:55.2]} 9. Be2 {[%clk 0:02:33.5]} 9... cxd4
{[%clk 0:02:53.9]} 10. exd4 {[%clk 0:02:34.4]} 10... Qxd4 {[%clk 0:02:52.1]} 11.
O-O {[%clk 0:02:29.7]} 11... O-O {[%clk 0:02:49.1]} 12. Be3 {[%clk 0:02:23.8]}
12... Qh4 {[%clk 0:02:44.6]} 13. Nd5 {[%clk 0:02:16.7]} 13... Nxd5 {[%clk
0:02:23]} 14. Qxd5 {[%clk 0:02:17.6]} 14... Be6 {[%clk 0:02:22.3]} 15. Qb5
{[%clk 0:02:04.7]} 15... a6 {[%clk 0:02:03.9]} 16. Qxb7 {[%clk 0:02:03.3]} 16...
Bxc4 {[%clk 0:02:02.5]} 17. Bxc4 {[%clk 0:01:58.1]} 17... Qxc4 {[%clk
0:02:01.5]} 18. Rac1 {[%clk 0:01:56.2]} 18... Na5 {[%clk 0:01:49.8]} 19. Rxc4
{[%clk 0:01:52.6]} 19... Nxb7 {[%clk 0:01:46.7]} 20. Rxb4 {[%clk 0:01:53.5]}
20... Na5 {[%clk 0:01:42.7]} 21. Rc1 {[%clk 0:01:48.3]} 21... f6 {[%clk
0:01:40.3]} 22. g3 {[%clk 0:01:39.3]} 22... Rfc8 {[%clk 0:01:35.4]} 23. Rxc8+
{[%clk 0:01:37.6]} 23... Rxc8 {[%clk 0:01:34.5]} 24. Rb6 {[%clk 0:01:36.8]}
24... Nc4 {[%clk 0:01:32.5]} 25. Rxa6 {[%clk 0:01:34.7]} 25... Nxe3 {[%clk
0:01:32.3]} 26. fxe3 {[%clk 0:01:35.6]} 26... Rc1+ {[%clk 0:01:32.3]} 27. Kf2
{[%clk 0:01:34.9]} 27... Rc2+ {[%clk 0:01:32.9]} 28. Kf3 {[%clk 0:01:35]} 28...
Rxb2 {[%clk 0:01:33.4]} 29. Ra7 {[%clk 0:01:35.2]} 29... Ra2 {[%clk 0:01:33]}
30. a5 {[%clk 0:01:35.1]} 30... h5 {[%clk 0:01:32.8]} 31. h4 {[%clk 0:01:33.5]}
31... Kh7 {[%clk 0:01:32.6]} 32. a6 {[%clk 0:01:32.6]} 32... Kg6 {[%clk
0:01:32.5]} 33. Ra8 {[%clk 0:01:32.4]} 33... Ra4 {[%clk 0:01:28.7]} 34. Ke2
{[%clk 0:01:24.5]} 34... Kf5 {[%clk 0:01:27.1]} 35. Kf3 {[%clk 0:01:15.9]} 35...
g6 {[%clk 0:01:13.7]} 36. a7 {[%clk 0:01:11.7]} 36... Ra3 {[%clk 0:01:12.8]} 37.
Ke2 {[%clk 0:00:42.5]} 37... Kg4 {[%clk 0:00:49.3]} 38. Rg8 {[%clk 0:00:40]}
38... Ra2+ {[%clk 0:00:48.2]} 39. Kd3 {[%clk 0:00:39.1]} 39... Rxa7 {[%clk
0:00:48]} 40. Rxg6+ {[%clk 0:00:38.2]} 40... Kf3 {[%clk 0:00:48.3]} 41. Rxf6+
{[%clk 0:00:38.4]} 41... Kxg3 {[%clk 0:00:48.5]} 42. Rf4 {[%clk 0:00:38.2]}
42... Re7 {[%clk 0:00:41.7]} 43. Kd4 {[%clk 0:00:25.2]} 43... Rd7+ {[%clk
0:00:41.5]} 44. Ke5 {[%clk 0:00:23.2]} 44... Re7+ {[%clk 0:00:41.2]} 45. Kf5
{[%clk 0:00:18.2]} 45... Rxe3 {[%clk 0:00:35.4]} 46. Ra4 {[%clk 0:00:18.2]}
46... Rb3 {[%clk 0:00:33.4]} 47. Kg6 {[%clk 0:00:16.6]} 47... Rb5 {[%clk
0:00:30.7]} 48. Re4 {[%clk 0:00:16.6]} 48... Rc5 {[%clk 0:00:30.5]} 49. Rb4
{[%clk 0:00:14.3]} 49... Kh3 {[%clk 0:00:29.5]} 50. Rf4 {[%clk 0:00:14.1]} 50...
Kg3 {[%clk 0:00:29.4]} 51. Re4 {[%clk 0:00:14.5]} 51... Kf3 {[%clk 0:00:29]} 52.
Rd4 {[%clk 0:00:11.4]} 52... Kg3 {[%clk 0:00:29.1]} 53. Re4 {[%clk 0:00:11.2]}
53... Kh3 {[%clk 0:00:29.1]} 54. Rf4 {[%clk 0:00:11.3]} 54... Kg3 {[%clk
0:00:29.3]} 55. Re4 {[%clk 0:00:11.7]} 1/2-1/2

[Event "*** SCC Grand Prix: Titled Tuesday Blitz"]
[Site "Chess.com"]
[Date "2020.10.06"]
[Round "9"]
[White "sergeikim"]
[Black "Kacparov"]
[Result "0-1"]
[WhiteElo "2550"]
[BlackElo "2765"]
[TimeControl "180+1"]
[EndTime "11:46:42 PDT"]
[Termination "Kacparov won by resignation"]

1. d4 {[%clk 0:03:00.9]} 1... Nf6 {[%clk 0:02:59.5]} 2. c4 {[%clk 0:03:00.8]}
2... e6 {[%clk 0:02:59.1]} 3. Nc3 {[%clk 0:03:00.7]} 3... Bb4 {[%clk 0:02:58.8]}
4. Qc2 {[%clk 0:03:00.6]} 4... d5 {[%clk 0:02:58.6]} 5. a3 {[%clk 0:03:00.4]}
5... Bxc3+ {[%clk 0:02:58.8]} 6. Qxc3 {[%clk 0:03:00.5]} 6... Ne4 {[%clk
0:02:57.5]} 7. Qc2 {[%clk 0:02:59.6]} 7... O-O {[%clk 0:02:57.8]} 8. Nf3 {[%clk
0:02:59.6]} 8... b6 {[%clk 0:02:57.1]} 9. g3 {[%clk 0:02:53.5]} 9... Ba6 {[%clk
0:02:52.3]} 10. b3 {[%clk 0:02:52.1]} 10... c5 {[%clk 0:02:50.2]} 11. dxc5
{[%clk 0:02:51.1]} 11... bxc5 {[%clk 0:02:49.3]} 12. Bg2 {[%clk 0:02:50]} 12...
Nc6 {[%clk 0:02:49.3]} 13. O-O {[%clk 0:02:46.8]} 13... Rb8 {[%clk 0:02:49.3]}
14. Rd1 {[%clk 0:02:44.6]} 14... Re8 {[%clk 0:02:40.7]} 15. Bb2 {[%clk
0:02:26.7]} 15... Qb6 {[%clk 0:02:35.8]} 16. cxd5 {[%clk 0:02:21]} 16... exd5
{[%clk 0:02:35.7]} 17. Rxd5 {[%clk 0:01:35.1]} 17... Qxb3 {[%clk 0:02:35.4]} 18.
Qxb3 {[%clk 0:01:35.7]} 18... Rxb3 {[%clk 0:02:34.9]} 19. Ne5 {[%clk 0:01:21.9]}
19... Rxb2 {[%clk 0:02:29.9]} 20. Nxc6 {[%clk 0:01:18.1]} 20... Nc3 {[%clk
0:02:23.8]} 21. Rxc5 {[%clk 0:01:16.4]} 21... Nxe2+ {[%clk 0:02:23.7]} 22. Kh1
{[%clk 0:01:15.9]} 22... Bb7 {[%clk 0:01:46.7]} 23. Nxa7 {[%clk 0:01:03.5]}
23... Nd4 {[%clk 0:01:46.2]} 24. Bxb7 {[%clk 0:00:58.3]} 24... Rxb7 {[%clk
0:01:44.9]} 25. Nc6 {[%clk 0:00:54.3]} 25... Nb3 {[%clk 0:01:30.6]} 26. Rac1
{[%clk 0:00:45.4]} 26... Nxc1 {[%clk 0:01:27]} 27. Rxc1 {[%clk 0:00:45.7]} 27...
Rc7 {[%clk 0:01:26.4]} 28. Rc2 {[%clk 0:00:37.2]} 28... Kf8 {[%clk 0:01:18.9]}
29. Nb4 {[%clk 0:00:36.4]} 29... Rxc2 {[%clk 0:01:18.3]} 30. Nxc2 {[%clk
0:00:36.9]} 30... Re2 {[%clk 0:01:18.2]} 31. Nd4 {[%clk 0:00:34.4]} 31... Rxf2
{[%clk 0:01:18.5]} 32. Kg1 {[%clk 0:00:33.6]} 32... Ra2 {[%clk 0:01:17.6]} 33.
Nb5 {[%clk 0:00:33.4]} 33... Rb2 {[%clk 0:01:11]} 34. Nd4 {[%clk 0:00:32.4]}
34... Rd2 {[%clk 0:01:09.7]} 35. Nb5 {[%clk 0:00:32]} 35... Ke7 {[%clk 0:01:06]}
36. Nc3 {[%clk 0:00:26.5]} 36... Rd3 {[%clk 0:01:04.8]} 37. Nb5 {[%clk
0:00:25.1]} 37... Kd7 {[%clk 0:01:03.9]} 38. Kf2 {[%clk 0:00:23.1]} 38... Kc6
{[%clk 0:01:02.5]} 39. a4 {[%clk 0:00:21.7]} 39... Kc5 {[%clk 0:00:54.9]} 40. h4
{[%clk 0:00:19.8]} 40... Rd2+ {[%clk 0:00:49]} 41. Kf3 {[%clk 0:00:18.4]} 41...
Ra2 {[%clk 0:00:47.7]} 42. Nc7 {[%clk 0:00:12.5]} 42... Rxa4 {[%clk 0:00:47.1]}
43. Ne8 {[%clk 0:00:10.3]} 43... g6 {[%clk 0:00:45.4]} 44. Nf6 {[%clk
0:00:09.2]} 44... h5 {[%clk 0:00:45.2]} 45. Ne4+ {[%clk 0:00:06.1]} 45... Kd4
{[%clk 0:00:39.5]} 46. Ng5 {[%clk 0:00:05.6]} 46... f6 {[%clk 0:00:37.8]} 47.
Ne6+ {[%clk 0:00:05.5]} 47... Ke5 {[%clk 0:00:37.9]} 48. Nf4 {[%clk 0:00:05.5]}
48... Rxf4+ {[%clk 0:00:32]} 49. gxf4+ {[%clk 0:00:04.6]} 49... Kf5 {[%clk
0:00:32.4]} 50. Kg3 {[%clk 0:00:04.3]} 50... Ke4 {[%clk 0:00:32.4]} 0-1

[Event "*** SCC Grand Prix: Titled Tuesday Blitz"]
[Site "Chess.com"]
[Date "2020.10.06"]
[Round "9"]
[White "lucachess49"]
[Black "chessmachine14"]
[Result "1-0"]
[WhiteElo "2396"]
[BlackElo "2279"]
[TimeControl "180+1"]
[EndTime "11:46:42 PDT"]
[Termination "lucachess49 won by checkmate"]

1. d4 {[%clk 0:03:00.9]} 1... Nf6 {[%clk 0:02:59.1]} 2. c4 {[%clk 0:03:01.4]}
2... g6 {[%clk 0:02:59.3]} 3. f3 {[%clk 0:03:00.8]} 3... Bg7 {[%clk 0:02:58.6]}
4. e4 {[%clk 0:03:01]} 4... d6 {[%clk 0:02:59]} 5. Nc3 {[%clk 0:03:00.6]} 5...
O-O {[%clk 0:02:59.7]} 6. Nge2 {[%clk 0:03:00.4]} 6... a6 {[%clk 0:02:59.1]} 7.
Be3 {[%clk 0:02:57.1]} 7... Nc6 {[%clk 0:02:59]} 8. Qd2 {[%clk 0:02:57.2]} 8...
Rb8 {[%clk 0:02:57.8]} 9. Rc1 {[%clk 0:02:56.8]} 9... Bd7 {[%clk 0:02:16.3]} 10.
Nd1 {[%clk 0:02:56.5]} 10... b5 {[%clk 0:02:15.7]} 11. c5 {[%clk 0:02:56.4]}
11... dxc5 {[%clk 0:02:14.2]} 12. Rxc5 {[%clk 0:02:53.5]} 12... e5 {[%clk
0:01:38.4]} 13. d5 {[%clk 0:02:52]} 13... Ne7 {[%clk 0:01:29.1]} 14. g4 {[%clk
0:02:37]} 14... Nc8 {[%clk 0:01:28.8]} 15. h4 {[%clk 0:02:35.2]} 15... Nd6
{[%clk 0:01:27.8]} 16. b3 {[%clk 0:02:28.6]} 16... Re8 {[%clk 0:01:16.4]} 17.
Nf2 {[%clk 0:02:27.4]} 17... h5 {[%clk 0:01:14.6]} 18. Ng3 {[%clk 0:01:58.1]}
18... hxg4 {[%clk 0:01:05.8]} 19. Bg5 {[%clk 0:01:52.7]} 19... Qe7 {[%clk
0:00:49.4]} 20. Rc1 {[%clk 0:01:39.3]} 20... gxf3 {[%clk 0:00:44.3]} 21. h5
{[%clk 0:01:37.6]} 21... Qf8 {[%clk 0:00:28.7]} 22. Bxf6 {[%clk 0:00:13.9]}
22... Bxf6 {[%clk 0:00:28.5]} 23. Rxc7 {[%clk 0:00:14.6]} 23... Red8 {[%clk
0:00:17.7]} 24. Rxd7 {[%clk 0:00:11.2]} 24... Rxd7 {[%clk 0:00:17.5]} 25. Ng4
{[%clk 0:00:12.1]} 25... Bg7 {[%clk 0:00:15.7]} 26. h6 {[%clk 0:00:11.8]} 26...
f5 {[%clk 0:00:11.5]} 27. hxg7 {[%clk 0:00:11.7]} 27... Qxg7 {[%clk 0:00:11.4]}
28. Nh6+ {[%clk 0:00:10.1]} 28... Kf8 {[%clk 0:00:11.6]} 29. exf5 {[%clk
0:00:09.7]} 29... gxf5 {[%clk 0:00:11.6]} 30. Nhxf5 {[%clk 0:00:09.9]} 30...
Nxf5 {[%clk 0:00:11]} 31. Nxf5 {[%clk 0:00:10.4]} 31... Qg6 {[%clk 0:00:09.2]}
32. Bd3 {[%clk 0:00:08.8]} 32... e4 {[%clk 0:00:08.9]} 33. Bxe4 {[%clk
0:00:08.2]} 33... Re7 {[%clk 0:00:09.2]} 34. Qd3 {[%clk 0:00:05.2]} 34... Rxe4+
{[%clk 0:00:06.8]} 35. Qxe4 {[%clk 0:00:04.9]} 35... f2+ {[%clk 0:00:06.7]} 36.
Kxf2 {[%clk 0:00:04.3]} 36... Qb6+ {[%clk 0:00:06.3]} 37. Kf3 {[%clk 0:00:04.1]}
37... Qf6 {[%clk 0:00:04.7]} 38. Rh6 {[%clk 0:00:03.2]} 38... Qf7 {[%clk
0:00:03.3]} 39. Rh8+ {[%clk 0:00:02.9]} 39... Qg8 {[%clk 0:00:03.1]} 40. Qe7#
{[%clk 0:00:03.4]} 1-0